bitfinex/quotes_ETHUSD_20250721
["timestamp","ask_amount","ask_price","bid_price","bid_amount"]
[1753097202760,4.76,3822.1,3821.5,0.38439323]
[1753097203062,4.76,3822.1,3821.5,2.61677015]
[1753097203218,2.61630798,3822.2,3821.7,2.61661421]
[1753097203219,4.756,3822.2,3821.7,2.61661421]
[1753097203424,4.752,3822.1,3821.9,0.1304]
[1753097203841,2.61621873,3822.4,3821.9,0.1304]
[1753097204046,0.802,3822.9,3821.9,0.1304]
[1753097204047,4.747,3822.3,3821.9,0.1304]
[1753097204971,0.8333,3822.2,3821.9,0.1304]
[1753097205142,4.744,3822.1,3821.9,2.74689306]
[1753097205326,4.744,3822.1,3821.9,0.1304]
[1753097205525,4.743,3822.1,3821.9,2.74689342]
[1753097205950,0.1304,3822.5,3822.0,2.61643089]
[1753097206175,0.24390304,3822.8,3822.1,1.06888309]
[1753097206370,2.61594193,3822.8,3822.1,1.06888309]
[1753097206669,2.6159733,3822.7,3821.7,2.61662731]
[1753097206973,2.6161441,3822.5,3821.6,2.61664844]
[1753097207254,0.24390304,3822.6,3821.5,0.4345]
[1753097207487,2.61623515,3822.3,3821.6,2.61670504]
[1753097207686,4.738,3822.2,3821.7,2.6165884]
[1753097207850,4.738,3822.2,3821.2,0.7807]
[1753097208045,14.5,3822.7,3821.9,2.61648257]
[1753097208046,4.734,3822.1,3821.9,2.61648257]
[1753097208474,2.61548268,3823.4,3821.8,2.6165681]
[1753097208681,4.732,3823.0,3822.1,2.61636273]
[1753097208983,0.24434344,3823.0,3822.3,2.61616892]
[1753097209197,4.73,3822.9,3822.3,2.6161805]
[1753097209347,4.73,3822.9,3822.4,2.61614466]
[1753097209549,4.725,3822.8,3822.5,2.61606947]
[1753097209765,4.725,3822.8,3822.4,2.61613556]
[1753097209980,15.3146,3823.3,3822.7,2.61593798]
[1753097209981,0.8146,3823.3,3822.7,2.61593798]
[1753097210291,2.61573061,3823.1,3822.3,2.61618086]
[1753097210505,2.61573061,3823.1,3822.1,2.61636273]
[1753097210506,2.615864,3822.9,3822.1,2.61636273]
[1753097210708,2.61615231,3822.5,3821.6,0.7641]
[1753097210859,2.61603089,3822.6,3821.9,2.61644217]
[1753097211058,2.61610058,3822.5,3821.8,2.61654896]
[1753097211258,2.61615779,3822.4,3821.8,2.61654896]
[1753097211561,4.719,3822.3,3821.8,2.61654896]
[1753097211889,5.5036,3822.3,3821.8,2.6165681]
[1753097212405,2.61518846,3823.9,3822.9,0.7587]
[1753097212560,2.61527607,3823.7,3822.8,2.61582896]
[1753097212761,0.7799,3823.7,3822.7,2.61595131]
[1753097213070,0.7799,3823.7,3822.4,1.1936]
[1753097213278,2.61535258,3823.6,3822.8,2.61586522]
[1753097213486,0.7799,3823.7,3822.4,1.1936]
[1753097213687,4.732,3823.3,3822.8,2.61583646]
[1753097214057,4.732,3823.3,3822.9,2.61581397]
[1753097214255,4.732,3823.3,3822.8,2.61586846]
[1753097214459,4.732,3823.3,3822.9,2.61579911]
[1753097214660,4.729,3823.3,3822.9,2.61579911]
[1753097214888,4.729,3823.3,3822.6,2.61598906]
[1753097215312,4.729,3823.3,3822.6,2.61596538]
[1753097215694,4.729,3823.3,3822.4,1.1936]
[1753097215695,4.729,3823.3,3822.8,2.61588231]
[1753097215895,4.729,3823.3,3822.4,1.1936]
[1753097216112,4.729,3823.3,3822.6,2.61599317]
[1753097216426,4.8594,3823.3,3822.8,2.61587917]
[1753097216824,4.8594,3823.3,3822.6,2.74640502]
[1753097216981,0.7541,3823.0,3822.6,0.1304]
[1753097217184,2.61597046,3822.7,3821.9,2.61644242]
[1753097217524,2.61597001,3822.7,3822.0,2.61636848]
[1753097217827,2.61592674,3822.8,3821.7,3.81467269]
[1753097218029,5.1563,3822.9,3821.7,3.05107269]
[1753097218030,2.61610097,3822.5,3821.7,3.05107269]
[1753097218187,5.1563,3822.9,3821.9,2.61649239]
[1753097218188,7.32186609,3822.9,3821.9,2.61649239]
[1753097218521,7.32186609,3822.9,3822.2,2.61628357]
[1753097218759,2.61593748,3822.8,3822.1,2.61634521]
[1753097218893,4.706,3822.9,3821.7,0.58130366]
[1753097219094,0.55,3822.8,3821.6,0.4355]
[1753097219321,2.61619994,3822.4,3821.6,0.4355]
[1753097219526,2.61619994,3822.4,3821.6,3.05218057]
[1753097219727,7.31225909,3822.3,3821.6,3.05218057]
[1753097220022,2.61630237,3822.2,3821.6,0.001]
[1753097220227,1.0003,3822.8,3821.6,0.001]
[1753097220521,1.0003,3822.8,3821.6,2.61770201]
[1753097220522,2.61624782,3822.3,3821.6,2.61770201]
[1753097220726,0.55,3823.2,3821.8,0.8184]
[1753097220934,2.61767857,3823.1,3821.9,0.02616499]
[1753097221102,2.61769565,3823.1,3822.0,0.4345]
[1753097221307,0.002,3823.1,3822.0,0.4345]
[1753097221489,0.002,3823.1,3823.0,5.61574679]
[1753097221692,0.002,3824.7,3823.8,0.8184]
[1753097222115,2.61659721,3824.7,3823.8,3.86809953]
[1753097222429,0.002,3824.7,3823.8,3.86809953]
[1753097222647,0.002,3824.7,3823.8,1.2529]
[1753097222828,2.61473634,3824.5,3823.8,0.4345]
[1753097223027,2.61465319,3824.6,3823.8,3.04969953]
[1753097223223,2.61481694,3824.4,3823.8,0.4345]
[1753097223429,2.61499373,3824.2,3823.8,0.4345]
[1753097223639,2.61487452,3824.3,3823.8,0.4345]
[1753097224334,2.61494048,3824.2,3823.8,0.4345]
[1753097225376,7.306651,3824.7,3823.8,0.4345]
[1753097225531,4.692,3824.7,3822.9,0.8224]
[1753097225734,2.61519953,3823.8,3822.9,0.8224]
[1753097225925,2.61519953,3823.8,3822.9,3.8224]
[1753097226131,0.7834,3823.7,3821.9,0.8224]
[1753097226428,2.61566228,3823.2,3822.4,2.61609311]
[1753097226652,0.7834,3823.7,3822.2,0.02616294]
[1753097226834,0.7834,3823.7,3822.3,0.4345]
[1753097227008,2.61593607,3822.8,3822.3,0.4345]
[1753097227216,2.61593607,3822.8,3822.6,0.1304]
[1753097227411,4.681,3823.7,3822.7,1.245]
[1753097227619,2.61567773,3823.2,3822.7,1.245]
[1753097227816,2.61567773,3823.2,3822.8,0.5649]
[1753097228516,2.61555468,3823.3,3822.8,0.5649]
[1753097230155,0.1304,3823.4,3822.8,0.1304]
[1753097230360,0.1304,3822.9,3822.3,0.1304]
[1753097230522,2.61611783,3822.5,3822.3,0.1304]
[1753097230718,2.61616071,3822.4,3822.1,0.1304]
[1753097230968,2.74635207,3822.7,3822.1,0.1304]
[1753097230969,2.61609209,3822.5,3822.1,0.1304]
[1753097231164,2.6161572,3822.5,3822.1,0.1304]
[1753097231943,2.74640997,3822.7,3822.1,0.1304]
[1753097232162,2.74640997,3822.7,3822.1,0.5649]
[1753097232647,2.61608956,3822.5,3822.1,0.5649]
[1753097232841,2.61608956,3822.5,3822.1,0.1304]
[1753097233029,0.1304,3822.7,3822.1,0.1304]
[1753097233251,0.1304,3822.7,3822.1,3.18121175]
[1753097233424,0.1304,3822.7,3822.1,0.5649]
[1753097233943,0.1304,3822.7,3822.1,3.18125143]
[1753097234333,0.1304,3822.7,3822.2,2.61627402]
[1753097234533,0.1304,3822.7,3822.2,2.61629428]
[1753097234844,0.1304,3822.7,3822.2,0.4345]
[1753097235223,0.7512,3823.0,3822.5,2.61604493]
[1753097235423,4.641,3822.9,3822.5,0.5649]
[1753097235618,0.1304,3823.2,3822.5,0.5649]
[1753097235844,4.639,3823.1,3822.5,3.18092225]
[1753097236561,7.25468227,3823.1,3822.5,0.5649]
[1753097236747,4.639,3823.1,3822.5,3.18096371]
[1753097237462,0.1304,3823.2,3822.5,3.18096517]
[1753097237690,2.61578529,3823.0,3822.7,0.1304]
[1753097237990,7.24369726,3823.1,3822.7,0.1304]
[1753097238187,0.1304,3823.4,3822.8,3.38367399]
[1753097238352,4.625,3823.5,3822.9,2.61581521]
[1753097238559,2.61554154,3823.3,3821.9,0.429]
[1753097238787,0.1304,3822.5,3821.8,0.1304]
[1753097238959,4.624,3822.7,3821.9,2.61645573]
[1753097239158,7.23995419,3822.7,3822.2,0.1304]
[1753097239885,4.624,3822.7,3822.2,0.1304]
[1753097240084,2.74674375,3822.2,3821.9,0.429]
[1753097240294,2.74674375,3822.2,3821.7,0.02616636]
[1753097240491,2.74674375,3822.2,3821.7,0.88883229]
[1753097240694,2.74674375,3822.2,3821.8,0.429]
[1753097241093,0.1304,3822.2,3821.7,0.88883229]
[1753097241317,2.7466971,3822.2,3821.8,0.429]
[1753097241595,0.1304,3822.2,3821.8,0.429]
[1753097241969,0.1304,3822.2,3821.9,0.429]
[1753097242173,0.1304,3822.2,3821.9,3.04549053]
[1753097242386,2.61603849,3822.6,3821.9,2.64265552]
[1753097242588,0.1304,3822.5,3822.0,0.429]
[1753097242791,2.74649842,3822.5,3822.0,0.429]
[1753097243106,2.61615738,3822.4,3821.8,0.53699252]
[1753097243302,2.61623014,3822.3,3821.8,0.53699252]
[1753097243617,0.1304,3822.0,3821.6,0.001]
[1753097243811,0.1304,3822.0,3821.6,2.64385176]
[1753097243971,0.1304,3822.0,3821.6,0.001]
[1753097244612,0.1304,3822.0,3821.6,3.07286828]
[1753097244780,0.1304,3822.0,3821.6,0.001]
[1753097245493,0.1304,3822.0,3821.6,0.02716705]
[1753097245703,0.1304,3822.0,3821.6,0.45616705]
[1753097245888,0.1304,3822.0,3821.6,1.11812933]
[1753097246092,0.1304,3822.0,3821.6,0.45616705]
[1753097246393,0.1304,3822.0,3821.7,0.429]
[1753097246923,0.1304,3822.0,3821.8,3.04551188]
[1753097247082,0.1304,3822.3,3821.9,0.429]
[1753097247418,0.1304,3822.8,3822.3,0.8207]
[1753097247614,0.7615,3823.8,3822.4,0.45516157]
[1753097247829,0.1304,3823.3,3822.7,0.1304]
[1753097248029,0.1304,3823.3,3822.9,2.6157882]
[1753097248313,0.1304,3823.3,3822.9,0.429]
[1753097248499,0.1304,3823.3,3823.0,0.02615746]
[1753097248703,0.1304,3823.3,3822.7,0.1304]
[1753097248904,0.1304,3822.9,3822.4,3.0]
[1753097249110,3.16611573,3822.5,3821.6,0.001]
[1753097249281,5.0319,3822.8,3821.9,2.61649964]
[1753097249282,2.61593859,3822.8,3821.9,2.61649964]
[1753097249489,4.589,3823.0,3821.9,0.02616499]
[1753097249816,2.61611164,3822.5,3821.9,0.02616499]
[1753097250015,2.61614419,3822.5,3821.9,0.02616499]
[1753097250514,2.6160374,3822.6,3821.9,2.64261535]
[1753097250714,2.6160988,3822.5,3822.0,1.07284418]
[1753097250922,2.6160988,3822.5,3822.0,0.64384418]
[1753097251121,2.6160988,3822.5,3822.1,0.429]
[1753097251316,2.6160988,3822.5,3821.9,2.64266173]
[1753097251620,2.61598484,3822.7,3822.0,2.61643118]
[1753097251820,2.6160451,3822.6,3821.9,2.64265243]
[1753097251987,2.61597137,3822.7,3822.0,2.61641282]
[1753097252301,2.6158209,3822.9,3821.9,0.89263856]
[1753097252504,4.589,3823.0,3822.3,2.61616865]
[1753097252729,4.589,3823.0,3822.4,2.6423189]
[1753097253137,2.61583498,3822.9,3822.3,0.429]
[1753097253459,2.61583498,3822.9,3821.9,0.86647357]
[1753097253460,0.7519,3822.9,3821.9,0.86647357]
[1753097253753,0.7519,3822.9,3821.8,0.7502]
[1753097253754,2.61622638,3822.3,3821.8,0.7502]
[1753097253950,0.7519,3822.9,3821.8,3.36672687]
[1753097254134,3.36772303,3822.9,3821.8,0.7502]
[1753097254336,2.61596775,3822.7,3822.3,0.001]
[1753097254849,0.3,3822.9,3822.3,0.001]
[1753097255356,2.61602538,3822.6,3822.3,0.001]
[1753097255531,2.61615738,3822.4,3822.3,0.001]
[1753097257118,3.06805738,3822.4,3822.3,0.001]
[1753097257532,4.564,3822.8,3822.3,0.001]
[1753097257733,2.61606356,3822.6,3822.3,0.001]
[1753097258242,7.17989039,3822.8,3822.3,0.001]
[1753097258243,2.6159663,3822.7,3822.3,0.001]
[1753097258654,2.6159663,3822.7,3822.3,0.26273591]
[1753097258858,4.564,3822.8,3822.3,0.001]
[1753097259011,4.564,3822.8,3822.3,2.61715836]
[1753097259347,0.1304,3822.6,3822.3,0.001]
[1753097259525,0.1304,3822.6,3822.3,2.61717642]
[1753097259913,0.1304,3822.6,3822.3,3.04617642]
[1753097260128,0.1304,3822.6,3822.4,0.429]
[1753097260327,0.3,3822.9,3822.4,1.211]
[1753097260523,0.1304,3822.8,3822.7,2.61590179]
[1753097260726,0.3,3822.9,3822.8,2.61588364]
[1753097260926,0.3,3822.9,3822.8,3.04488364]
[1753097261158,0.3,3822.9,3822.8,3.62661813]
[1753097261449,0.3,3822.9,3822.8,3.75701813]
[1753097262412,0.3,3822.9,3822.8,8.29001813]
[1753097262648,0.3,3822.9,3822.8,12.10891813]
[1753097263046,0.3,3822.9,3822.8,7.57591813]
[1753097263264,0.3,3822.9,3822.8,12.10791813]
[1753097264041,0.3,3822.9,3822.8,12.10491813]
[1753097264314,0.3,3822.9,3822.8,7.57591813]
[1753097264520,0.3,3822.9,3822.8,1.53103449]
[1753097264757,0.3,3822.9,3822.7,2.74634237]
[1753097264939,0.3,3822.9,3822.8,2.61588364]
[1753097265362,0.3,3822.9,3822.8,3.04488364]
[1753097266756,0.3,3822.9,3822.8,7.69028364]
[1753097267050,0.3,3822.9,3822.8,7.25828364]
[1753097267213,0.3,3822.9,3822.8,2.74628364]
[1753097267417,0.3,3822.9,3822.7,2.61593156]
[1753097267638,0.3,3822.9,3822.7,2.74633826]
[1753097267839,0.3,3822.9,3822.7,3.17960353]
[1753097268044,0.3,3822.9,3822.8,2.61588364]
[1753097268431,0.3,3822.9,3822.7,3.17960212]
[1753097268615,0.3,3822.9,3822.8,2.61588364]
[1753097268823,0.3,3822.9,3822.8,3.10324247]
[1753097269031,0.3,3822.9,3822.8,2.64204247]
[1753097269256,0.3,3822.9,3822.8,4.13581517]
[1753097269863,0.3,3822.9,3822.7,0.1304]
[1753097270036,2.91583931,3822.9,3822.5,4.501]
[1753097270235,0.7807,3822.8,3821.6,0.4622]
[1753097270541,2.61597079,3822.7,3821.9,2.61645658]
[1753097270736,0.3,3822.9,3822.0,2.61642604]
[1753097270941,0.3,3822.9,3822.4,3.07730267]
[1753097271141,0.3,3822.9,3822.5,0.76903027]
[1753097271581,2.91582968,3822.9,3822.5,0.4612]
[1753097271753,2.91582968,3822.9,3822.3,2.64336853]
[1753097271953,0.3,3822.9,3822.4,2.61614727]
[1753097272154,0.3,3822.9,3822.5,0.4612]
[1753097272668,0.3,3822.9,3822.5,3.07728472]
[1753097272870,0.3,3822.9,3822.6,0.56944823]
[1753097273448,2.91582913,3822.9,3822.3,0.001]
[1753097273674,2.91582913,3822.9,3822.3,2.61722462]
[1753097274442,0.3,3822.9,3822.3,2.61722462]
[1753097275156,0.3,3822.9,3822.3,2.617219]
[1753097275557,0.3,3822.9,3822.5,2.61603287]
[1753097276062,0.3,3822.9,3822.5,0.4612]
[1753097276270,0.3,3822.9,3822.4,2.64230114]
[1753097276456,0.3,3822.9,3822.5,0.4612]
[1753097276655,0.3,3822.9,3822.6,0.4612]
[1753097277446,0.3,3822.9,3822.7,0.8207]
[1753097277739,0.3,3822.9,3822.7,3.89781067]
[1753097279450,0.3,3822.9,3822.8,2.61588364]
[1753097280259,0.3,3822.9,3822.8,3.72847044]
[1753097282987,0.3,3822.9,3822.6,0.1304]
[1753097283159,2.74632533,3822.8,3822.3,0.001]
[1753097283363,2.74632492,3822.8,3822.3,0.001]
[1753097283567,3.20452492,3822.8,3822.3,0.001]
[1753097283750,0.1304,3822.8,3822.3,2.6171725]
[1753097284085,0.1304,3822.8,3822.4,0.02616157]
[1753097284288,0.1304,3822.8,3822.5,2.61604231]
[1753097284490,0.1304,3822.8,3822.6,2.61601557]
[1753097284787,0.3,3822.9,3822.7,2.61595207]
[1753097285285,0.3,3822.9,3822.5,2.61604919]
[1753097285476,0.3,3822.9,3822.4,0.1304]
[1753097285677,0.3,3822.9,3822.7,2.61590103]
[1753097285989,0.3,3822.9,3822.6,2.6160205]
[1753097286187,0.3,3822.9,3822.5,3.10344001]
[1753097286570,0.3,3822.9,3822.7,2.61589636]
[1753097286766,0.3,3822.9,3822.5,2.61606083]
[1753097286968,0.3,3822.9,3822.5,2.61608225]
[1753097287280,2.91585992,3822.9,3822.3,2.61717363]
[1753097287478,0.3,3822.9,3822.3,0.001]
[1753097287680,4.734,3822.9,3822.4,2.6161392]
[1753097287982,0.1304,3822.8,3822.4,0.4612]
[1753097288689,2.74629316,3822.8,3822.3,0.001]
[1753097288885,0.1304,3822.8,3822.3,0.001]
[1753097289093,0.1304,3822.8,3822.3,2.61721142]
[1753097289400,0.1304,3822.8,3822.4,0.4612]
[1753097289553,0.1304,3822.8,3822.3,2.61720172]
[1753097289751,2.61606278,3822.6,3822.3,0.001]
[1753097289991,0.1304,3822.5,3822.3,0.001]
[1753097290352,2.74652673,3822.5,3822.3,0.001]
[1753097290567,0.9525,3822.5,3822.3,0.001]
[1753097290768,2.61615738,3822.4,3822.3,0.001]
[1753097291072,4.02680408,3822.5,3822.3,0.001]
[1753097291267,2.61615738,3822.4,3822.3,0.001]
[1753097291802,3.07435738,3822.4,3822.3,0.001]
[1753097292256,0.4582,3822.4,3822.3,0.001]
[1753097292456,3.07435738,3822.4,3822.3,0.001]
[1753097293195,0.4582,3822.4,3822.3,0.001]
[1753097293408,0.9525,3822.5,3822.3,0.001]
[1753097293613,3.07435738,3822.4,3822.3,0.001]
[1753097294107,3.62435738,3822.4,3822.3,0.001]
[1753097294314,4.37975738,3822.4,3822.3,0.001]
[1753097294864,18.32975738,3822.4,3822.3,0.001]
[1753097295212,23.30875738,3822.4,3822.3,0.001]
[1753097295719,22.75875738,3822.4,3822.3,0.001]
[1753097295999,8.25875738,3822.4,3822.3,0.001]
[1753097296992,5.6426,3822.4,3822.3,0.001]
[1753097297195,8.25875738,3822.4,3822.3,0.001]
[1753097297805,8.80875738,3822.4,3822.3,0.001]
[1753097298886,3.82975738,3822.4,3822.3,0.001]
[1753097299220,4.37975738,3822.4,3822.3,0.001]
[1753097299418,8.80875738,3822.4,3822.3,0.001]
[1753097300843,23.30875738,3822.4,3822.3,0.001]
[1753097301134,18.87975738,3822.4,3822.3,0.001]
[1753097301439,23.30875738,3822.4,3822.3,0.001]
[1753097301892,2.61592291,3822.8,3822.3,0.001]
[1753097301893,1.0594,3822.9,3822.6,2.61595935]
[1753097302097,0.3,3822.9,3822.7,0.98330616]
[1753097302406,0.3,3822.9,3822.7,3.07604464]
[1753097303949,0.3,3822.9,3822.8,3.07598364]
[1753097306831,0.3,3822.9,3822.3,0.4611]
[1753097307135,0.3,3822.9,3822.5,2.61604486]
[1753097307299,0.3,3822.9,3822.4,2.61615318]
[1753097307701,2.9158174,3822.9,3822.3,3.07731181]
[1753097307901,0.3,3822.9,3822.3,0.4611]
[1753097308121,0.3,3822.9,3822.5,2.61608792]
[1753097308835,0.3,3822.9,3822.4,2.61614519]
[1753097309023,0.3,3822.9,3822.5,2.61607545]
[1753097309229,0.3,3822.9,3822.4,2.61614065]
[1753097309738,0.3,3822.9,3822.3,0.001]
[1753097309939,2.61593624,3822.8,3822.3,0.001]
[1753097310108,2.61595795,3822.7,3822.3,0.001]
[1753097310309,0.768,3822.6,3822.3,0.001]
[1753097311037,0.768,3822.6,3822.3,2.61718369]
[1753097311429,0.768,3822.6,3822.3,0.30872837]
[1753097311740,0.768,3822.6,3822.3,2.61721151]
[1753097311937,0.768,3822.6,3822.3,0.001]
[1753097312440,3.38403217,3822.6,3822.3,0.001]
[1753097312643,2.61615738,3822.4,3822.3,0.001]
[1753097313208,17.55495738,3822.4,3822.3,0.001]
[1753097314138,17.11615738,3822.4,3822.3,0.001]
[1753097314853,18.10495738,3822.4,3822.3,0.001]
[1753097315151,21.90985738,3822.4,3822.3,0.001]
[1753097316253,7.40985738,3822.4,3822.3,0.001]
[1753097316458,7.40985738,3822.4,3822.3,1e-08]
[1753097316674,21.90985738,3822.4,3822.3,1e-08]
[1753097316853,6.92493118,3822.0,3821.9,0.001]
[1753097317025,11.35093118,3822.0,3821.9,0.001]
[1753097317221,11.78973118,3822.0,3821.9,0.001]
[1753097318123,6.93054199,3821.4,3821.3,0.001]
[1753097318327,11.35554199,3821.4,3821.3,0.001]
[1753097318560,11.79434199,3821.4,3821.3,0.001]
[1753097318757,26.29434199,3821.4,3821.3,0.001]
[1753097321225,25.85554199,3821.4,3821.3,0.001]
[1753097322027,26.29434199,3821.4,3821.3,0.001]
[1753097323564,14.5,3821.4,3821.3,0.001]
[1753097323763,0.7873,3821.8,3821.3,0.001]
[1753097323964,2.61678417,3821.5,3821.3,0.001]
[1753097324153,7.04084199,3821.4,3821.3,0.001]
[1753097324742,3.60564199,3821.4,3821.3,0.001]
[1753097324942,23.33244199,3821.4,3821.3,0.001]
[1753097325276,6.96984744,3821.1,3821.0,0.001]
[1753097325432,11.39384744,3821.1,3821.0,0.001]
[1753097325766,11.83264744,3821.1,3821.0,0.001]
[1753097329130,7.40864744,3821.1,3821.0,0.001]
[1753097329332,11.83264744,3821.1,3821.0,0.001]
[1753097330282,6.96565293,3820.8,3820.7,0.001]
[1753097330461,11.38865293,3820.8,3820.7,0.001]
[1753097330838,11.85975293,3820.8,3820.7,0.001]
[1753097331535,6.96565293,3820.8,3820.7,0.001]
[1753097331745,11.38765293,3820.8,3820.7,0.001]
[1753097331940,11.38865293,3820.8,3820.7,0.001]
[1753097332451,4.422,3820.8,3820.7,0.001]
[1753097333288,4.972,3820.8,3820.7,0.001]
[1753097333668,2.61707188,3821.1,3820.7,0.001]
[1753097333872,4.972,3821.0,3820.7,0.4663]
[1753097334050,4.422,3820.9,3820.8,0.4653]
[1753097334876,2.6167978,3821.5,3820.8,3.08254646]
[1753097335047,0.55,3821.3,3820.8,0.4653]
[1753097335246,0.55,3821.3,3820.9,0.4653]
[1753097335448,6.279,3822.2,3820.7,0.001]
[1753097335449,2.61652713,3821.9,3821.2,2.61693301]
[1753097335649,0.1304,3821.2,3820.7,0.7527]
[1753097335845,0.1304,3821.2,3821.1,3.08234744]
[1753097337250,2.61630492,3822.2,3821.5,2.61671271]
[1753097337455,4.42,3822.1,3821.6,3.08195202]
[1753097337651,2.61623929,3822.3,3821.7,3.08191895]
[1753097337852,4.42,3822.2,3821.7,3.08191895]
[1753097338077,4.42,3822.2,3821.8,3.08181502]
[1753097338273,0.1304,3821.8,3821.7,2.61661393]
[1753097338888,0.1304,3821.8,3821.7,3.08191393]
[1753097339324,0.1304,3821.8,3821.7,3.73261667]
[1753097339475,4.419,3822.7,3821.7,1.11600274]
[1753097339797,0.1304,3822.1,3822.0,2.61643118]
[1753097340181,0.1304,3822.1,3822.0,3.08173118]
[1753097343564,14.8,3822.9,3822.4,2.61610197]
[1753097343763,14.8,3822.9,3822.4,3.08140197]
[1753097343970,14.8,3822.9,3822.5,2.61608894]
[1753097344286,14.8,3822.9,3822.5,0.4653]
[1753097344458,0.3,3822.9,3822.7,2.61588438]
[1753097344662,0.1304,3822.7,3822.6,2.6160205]
[1753097345311,0.1304,3822.7,3822.6,3.0813205]
[1753097346402,0.1304,3822.7,3822.6,2.6160205]
[1753097346776,0.1304,3822.7,3822.2,2.61624161]
[1753097347317,0.1304,3822.3,3822.2,0.4653]
[1753097347802,0.1304,3822.3,3822.2,3.08159428]
[1753097348465,0.1304,3822.3,3822.0,2.61636747]
[1753097348701,0.1304,3822.3,3822.0,0.4653]
[1753097348895,0.1304,3822.3,3822.1,2.61636273]
[1753097349089,0.1304,3822.3,3822.1,3.08166273]
[1753097349298,0.1304,3822.3,3822.2,3.08159428]
[1753097349990,0.1304,3822.3,3822.2,0.4653]
[1753097350364,0.1304,3822.3,3822.0,2.61642158]
[1753097350594,0.1304,3822.3,3822.0,7.02942158]
[1753097350781,0.1304,3822.3,3822.1,3.08164847]
[1753097350961,0.1304,3822.3,3822.2,2.61629428]
[1753097351362,0.1304,3822.3,3822.2,3.08159428]
[1753097351601,0.1304,3822.3,3822.2,0.4653]
[1753097352570,0.3,3822.9,3822.5,2.6160522]
[1753097352769,0.1304,3822.6,3822.5,2.6160522]
[1753097352970,0.1304,3822.6,3822.5,3.4233522]
[1753097353393,0.1304,3822.6,3822.5,3.8886522]
[1753097354501,0.1304,3822.6,3822.5,4.98023955]
[1753097354682,0.3,3822.9,3822.5,2.36418735]
[1753097354890,0.3,3822.9,3822.8,2.61588364]
[1753097355122,0.3,3822.9,3822.8,7.93888364]
[1753097355411,0.3,3822.9,3822.8,8.40418364]
[1753097356794,0.3,3822.9,3822.8,5.6569]
[1753097357516,0.3,3822.9,3822.8,8.27278364]
[1753097357722,0.3,3822.9,3822.8,9.243502]
[1753097357944,0.3,3822.9,3822.8,2.21861836]
[1753097358134,0.3,3822.9,3822.8,6.62761836]
[1753097358337,0.3,3822.9,3822.8,5.6559]
[1753097358687,0.3,3822.9,3822.8,4.8733]
[1753097358894,2.91581521,3822.9,3822.1,0.4415]
[1753097359106,2.61629428,3822.2,3822.0,0.8048]
[1753097359389,2.61629428,3822.2,3822.1,4.408]
[1753097359604,2.61624341,3822.3,3822.0,0.4415]
[1753097359815,2.61624341,3822.3,3822.0,4.8485]
[1753097360134,2.61630377,3822.2,3822.1,4.407]
[1753097360488,2.74677163,3822.1,3822.0,4.407]
[1753097361108,2.74677163,3822.1,3821.7,0.8048]
[1753097361301,2.74677163,3822.1,3821.8,4.407]
[1753097361520,2.74677163,3822.1,3821.8,0.4415]
[1753097361727,2.74677163,3822.1,3821.9,4.406]
[1753097361927,0.1304,3822.1,3821.9,4.406]
[1753097362098,2.6165574,3821.9,3821.5,0.1304]
[1753097362432,2.61669216,3821.7,3821.3,0.7892]
[1753097362636,3.38217253,3822.4,3821.6,4.406]
[1753097362637,0.55,3822.3,3821.6,4.406]
[1753097363135,2.61663657,3821.7,3821.6,4.406]
[1753097363340,2.61657062,3821.8,3821.6,4.406]
[1753097363933,2.61663657,3821.7,3821.6,4.406]
[1753097364434,0.1304,3821.6,3821.5,0.4415]
[1753097364633,2.61678273,3821.5,3821.0,0.4425]
[1753097364854,0.1304,3821.5,3821.0,0.001]
[1753097365132,2.74722986,3821.5,3821.1,4.8465]
[1753097365295,0.1304,3821.5,3821.1,4.405]
[1753097365493,0.1304,3821.5,3821.2,0.4415]
[1753097365896,0.1304,3821.5,3821.1,4.405]
[1753097365897,0.55,3821.9,3821.0,0.001]
[1753097366092,0.7918,3821.8,3821.1,4.404]
[1753097366532,0.1304,3821.4,3821.1,4.404]
[1753097366831,0.1304,3821.4,3821.2,0.92615]
[1753097367038,0.1304,3821.4,3821.2,0.4415]
[1753097368029,2.74724651,3821.4,3821.1,4.403]
[1753097368412,2.61693108,3821.3,3821.0,0.001]
[1753097368737,0.1304,3821.2,3821.1,4.403]
[1753097369326,0.1304,3821.2,3821.1,4.8445]
[1753097369519,0.1304,3821.2,3821.1,5.32905]
[1753097370167,0.1304,3821.2,3821.1,5.32805]
[1753097372856,0.1304,3821.2,3821.0,0.001]
[1753097373036,0.1304,3821.2,3821.1,4.401]
[1753097373235,2.74737895,3821.2,3821.1,4.401]
[1753097373874,0.1304,3821.2,3821.1,4.401]
[1753097374354,0.1304,3821.2,3821.0,4.401]
[1753097374924,2.61704744,3821.1,3821.0,0.001]
[1753097375126,2.61704744,3821.1,3821.0,4.401]
[1753097375476,0.1304,3821.2,3821.0,0.001]
[1753097375757,2.74738494,3821.2,3821.0,0.001]
[1753097375936,2.61704744,3821.1,3821.0,0.001]
[1753097376355,2.74739882,3821.2,3821.0,0.001]
[1753097376788,2.74738031,3821.2,3821.0,0.001]
[1753097376982,0.1304,3821.2,3821.0,0.001]
[1753097377274,0.1304,3821.2,3821.0,4.4]
[1753097377440,0.1304,3821.2,3821.0,0.001]
[1753097377774,2.61704744,3821.1,3821.0,0.001]
[1753097377981,0.1304,3821.2,3821.0,0.001]
[1753097378135,2.7473941,3821.2,3821.0,0.001]
[1753097378336,0.1304,3821.2,3821.0,0.001]
[1753097378536,2.91585246,3822.9,3821.3,2.61689478]